lending/lending_fUSD_20240120
["ID","MTS","AMOUNT","RATE_DAILY","PERIOD"]
[312293995,1705756095536,-2100.0,0.000226,8]
[312293996,1705756095557,-400.0,0.000227,8]
[312293997,1705756095577,-4241.0,0.0002277,2]
[312293998,1705756095598,-400.0,0.000228,8]
[312293999,1705756095618,-151.91526469,0.000229,2]
[312294000,1705756095638,-343.5752511,0.000229,2]
[312294001,1705756095658,-1695.4520884,0.000229,2]
[312294003,1705756169713,-205.4335435,0.000229,6]
[312294004,1705756169734,-20762.09319329,0.000229,2]
[312294005,1705756169754,-19712.47326321,0.000229,2]
[312294010,1705756231420,-1702.32337079,0.000229,2]
[312294011,1705756231430,-169.47537492,0.000229,2]
[312294012,1705756231439,-1140.61493123,0.000229,2]
[312294013,1705756231593,-17605.69826817,0.000229,2]
[312294023,1705756237476,-4828.21865293,0.000229,2]
[312294024,1705756237642,-39701.0027977,0.000229,2]
[312294025,1705756237653,-1518.51945696,0.000229,2]
[312294035,1705756240694,-924.93004194,0.000229,2]
[312294134,1705756247517,-65248.93728132,0.000229,2]
[312294135,1705756247528,-854.73213679,0.000229,2]
[312294146,1705757101236,175.48,0.00019489,2]
[312294165,1705757431672,-233.29692962,0.00019996,2]
[312294166,1705757431688,-41.92831828,0.0002,2]
[312294167,1705757431700,-108.58037433,0.0002,2]
[312294168,1705757431709,-157.52151574,0.00020688,2]
[312294169,1705757431718,-77.83810993,0.00020862,2]
[312294196,1705757437786,-226.11786442,0.00019995,2]
[312294197,1705757437795,-62.29600456,0.00020862,2]
[312294198,1705757437841,-859.86588551,0.00020862,2]
[312294199,1705757437850,-82.85772187,0.00021227,2]
[312294200,1705757437954,-363.61901928,0.00021227,2]
[312294451,1705757440360,-553.52325885,0.00021227,2]
[312294453,1705757440370,-155.76,0.00021332,2]
[312294455,1705757440380,-250.0,0.00021332,2]
[312294458,1705757440389,-179.61905572,0.00021345,2]
[312294459,1705757440398,-22.84574643,0.0002137,2]
[312294462,1705757440411,-699.65573577,0.0002137,2]
[312294468,1705757440460,-277.4985178,0.0002137,2]
[312294470,1705757440470,-583.71584965,0.000214,2]
[312294472,1705757440479,-155.25,0.00021406,2]
[312294474,1705757440488,-1000.0,0.0002142,2]
[312294476,1705757440497,-2447.43377176,0.00021444,2]
[312294478,1705757440509,-1942.37721319,0.00021444,2]
[312294481,1705757440521,-289.96267146,0.00021444,2]
[312294484,1705757440540,-1451.4489356,0.00021444,2]
[312294486,1705757440551,-720.54062004,0.00021444,2]
[312294488,1705757440563,-1075.51440885,0.00021444,2]
[312294491,1705757440575,-23871.47623088,0.00021444,2]
[312294493,1705757440586,-1424.40289611,0.00021444,2]
[312294510,1705757440934,-548.24269277,0.00021444,2]
[312294511,1705757440944,-1000.0,0.00021445,2]
[312294512,1705757440953,-2000.0,0.00021644,2]
[312294513,1705757440963,-1000.0,0.00021718,2]
[312294514,1705757440972,-175.48,0.00021752,2]
[312294515,1705757440982,-1000.0,0.00021882,2]
[312294516,1705757440992,-1000.0,0.00021902,2]
[312294517,1705757441001,-250.0,0.00021918,2]
[312294518,1705757441011,-155.25,0.00021964,2]
[312294519,1705757441020,-161.43,0.00021993,2]
[312294520,1705757441029,-351.02,0.00022,2]
[312294521,1705757441039,-257.02,0.00022,2]
[312294522,1705757441048,-449.75,0.00022137,2]
[312294523,1705757441056,-172.91,0.00022147,2]
[312294524,1705757441066,-2000.0,0.00022445,2]
[312294525,1705757441075,-155.25,0.00022522,2]
[312294526,1705757441085,-150.0,0.00022562,2]
[312294527,1705757441094,-1000.0,0.00022798,2]
[312294528,1705757441103,-16642.66418103,0.00022799,2]
[312294529,1705757441113,-177.94694387,0.000228,2]
[312294530,1705757441122,-177.94694383,0.00022825,2]
[312294531,1705757441131,-177.94694383,0.0002285,2]
[312294532,1705757441140,-177.94694383,0.00022875,2]
[312294533,1705757441149,-2138.69674334,0.00022898,2]
[312294534,1705757441159,-156.07210005,0.00022898,2]
[312294535,1705757441168,-155.88524959,0.00022898,2]
[312294536,1705757441178,-244.64133608,0.00022898,2]
[312294537,1705757441187,-526.14369271,0.00022898,2]
[312294538,1705757441196,-517.34489861,0.00022898,2]
[312294539,1705757441205,-338.0945803,0.00022898,2]
[312294540,1705757441214,-300.62032364,0.00022898,2]
[312294541,1705757441223,-765.15731892,0.00022898,2]
[312294542,1705757441233,-3928.82337372,0.00022898,2]
[312294543,1705757441242,-155.37183511,0.00022898,2]
[312294544,1705757441252,-939.56400894,0.00022898,2]
[312294545,1705757441261,-318.525335,0.00022898,2]
[312294546,1705757441270,-315.7759354,0.00022898,2]
[312294547,1705757441280,-2143.98939105,0.00022898,2]
[312294548,1705757441289,-2920.39443948,0.00022898,2]
[312294549,1705757441298,-215.60720017,0.00022898,2]
[312294550,1705757441308,-711.49718173,0.00022898,2]
[312294551,1705757441317,-156.19638102,0.00022898,2]
[312294553,1705757441327,-1342.68854386,0.00022898,2]
[312294555,1705757441336,-162.31809355,0.00022898,2]
[312294557,1705757441345,-419.08132681,0.00022898,2]
[312294559,1705757441354,-4385.86552858,0.00022898,2]
[312294561,1705757441363,-163.05673702,0.00022898,2]
[312294562,1705757441372,-156.11322435,0.00022898,2]
[312294563,1705757441381,-161.56475026,0.00022898,2]
[312294564,1705757441391,-1126.24697237,0.00022898,2]
[312294565,1705757441401,-156.21158462,0.00022898,2]
[312294566,1705757441410,-282.39858431,0.00022898,2]
[312294567,1705757441420,-363.95030567,0.00022898,2]
[312294568,1705757441430,-155.0,0.00022899,2]
[312294569,1705757441439,-16276.19342119,0.00022899,2]
[312294570,1705757441449,-500.0,0.00022899,2]
[312294571,1705757441458,-203855.34643296,0.000229,2]
[312294572,1705757441468,-186.87447347,0.000229,2]
[312294574,1705757441477,-151.94622684,0.000229,2]
[312294576,1705757441486,-179.61905572,0.000229,2]
[312294578,1705757441496,-177.94694383,0.000229,2]
[312294580,1705757441505,-500.71286785,0.000229,2]
[312294582,1705757441514,-1218.48763867,0.000229,2]
[312294584,1705757441524,-317.257103,0.000229,2]
[312294586,1705757441533,-1128.58150832,0.000229,2]
[312294588,1705757441542,-215.35384188,0.00022975,2]
[312294590,1705757441551,-186.41515541,0.00022986,2]
[312294592,1705757441560,-162.74561276,0.00022998,2]
[312294594,1705757441569,-155.71213586,0.00022998,2]
[312294596,1705757441579,-272.33856688,0.00022998,2]
[312294599,1705757441596,-2619.24962995,0.00022998,2]
[312294601,1705757441609,-1153.75350663,0.00022998,2]
[312294604,1705757441619,-6243.14931431,0.00022998,2]
[312294606,1705757441629,-888.99348604,0.00022998,2]
[312294608,1705757441638,-1830.0899859,0.00022998,2]
[312294610,1705757441648,-27726.10852195,0.00022999,2]
[312294612,1705757441662,-2102.76854063,0.00022999,2]
[312294614,1705757441672,-391.91066709,0.00022999,10]
[312294617,1705757441684,-150.0,0.00022999,2]
[312294619,1705757441694,-150.0,0.00022999,2]
[312294621,1705757441703,-150.0,0.00022999,2]
[312294623,1705757441712,-150.0,0.00022999,2]
[312294625,1705757441722,-150.0,0.00022999,2]
[312294627,1705757441732,-150.0,0.00022999,2]
[312294629,1705757441741,-150.0,0.00022999,2]
[312294631,1705757441751,-150.0,0.00022999,2]
[312294633,1705757441762,-150.0,0.00022999,2]
[312294635,1705757441771,-150.0,0.00022999,2]
[312294637,1705757441780,-150.0,0.00022999,2]
[312294639,1705757441789,-150.0,0.00022999,2]
[312294641,1705757441799,-150.0,0.00022999,2]
[312294643,1705757441808,-150.0,0.00022999,2]
[312294645,1705757441817,-150.0,0.00022999,2]
[312294647,1705757441826,-150.0,0.00022999,2]
[312294649,1705757441836,-150.0,0.00022999,2]
[312294650,1705757441845,-150.0,0.00022999,2]
[312294652,1705757441855,-150.0,0.00022999,2]
[312294653,1705757441864,-150.0,0.00022999,2]
[312294654,1705757441873,-298.2548346,0.00022999,2]
[312294655,1705757441882,-150.0,0.00022999,2]
[312294656,1705757441891,-150.0,0.00022999,2]
[312294657,1705757441900,-150.0,0.00022999,2]
[312294658,1705757441909,-150.0,0.00022999,2]
[312294659,1705757441918,-150.0,0.00022999,2]
[312294660,1705757441928,-150.0,0.00022999,2]
[312294661,1705757441937,-793.15057898,0.00023,2]
[312294662,1705757441946,-30232.11549495,0.00023,3]
[312294664,1705757441958,-124862.73028926,0.00023,3]
[312294666,1705757441973,-507.65898413,0.00023,3]
[312294681,1705757442569,-328.32741597,0.00023,3]
[312294682,1705757442626,-1643.69198603,0.00023,3]
[312294683,1705757442639,-10000.0,0.00023,3]
[312294684,1705757442683,-396.38676567,0.00023,3]
[312294685,1705757442697,-446.446,0.00023,3]
[312294686,1705757442740,-1055.07825606,0.00023,3]
[312294687,1705757442751,-681.10840249,0.00023,3]
[312294688,1705757442763,-37537.14051899,0.00023,3]
[312294689,1705757442795,-316.19458549,0.00023,3]
[312294690,1705757442852,-443.4506406,0.00023,3]
[312294691,1705757442909,-269.49706015,0.00023,3]
[312294708,1705757445650,-263.70530403,0.00022998,2]
[312294709,1705757445663,-3600.29923112,0.00023,3]
[312294710,1705757445707,-2290.46103287,0.00023,3]
[312294711,1705757445718,-8691.75106017,0.00023,3]
[312294712,1705757445763,-1014.8698506,0.00023,3]
[312294713,1705757445776,-2110.67969907,0.00023,3]
[312294714,1705757445822,-531.911,0.00023,3]
[312294715,1705757445834,-2086.1,0.00023,3]
[312294716,1705757445846,-600.23811888,0.00023,3]
[312294717,1705757445858,-773.56478229,0.00023,3]
[312294718,1705757445881,-2882.23338395,0.00023,3]
[312294719,1705757445936,-4128.79270286,0.00023,3]
[312294720,1705757445947,-353.86054689,0.00023,3]
[312294721,1705757445959,-6063.61576903,0.00023,3]
[312294773,1705757819466,-226.11786442,0.00020576,2]
[312294774,1705757819488,-354.6810307,0.00020577,2]
[312294775,1705757819508,-199.32847921,0.00020578,2]
[312294776,1705757819530,-175.19,0.00020586,2]
[312294777,1705757819551,-1000.0,0.00021664,2]
[312294778,1705757819572,-250.0,0.00021998,2]
[312294779,1705757819595,-165.42,0.00022084,2]
[312294780,1705757819616,-200.0,0.00022288,2]
[312294781,1705757819638,-165.42,0.00022415,2]
[312294782,1705757819659,-165.42,0.00022746,2]
[312294783,1705757819679,-150.0,0.00022769,2]
[312294784,1705757819699,-5328.42262567,0.0002277,2]
[312294787,1705758134346,2741.0,0.00025,30]
[312294791,1705758154507,-166.43,0.00020128,2]
[312294792,1705758154531,-1000.0,0.00021943,2]
[312294793,1705758154553,-198.42,0.00022034,2]
[312294794,1705758154574,-840.0,0.00022057,2]
[312294795,1705758154593,-14235.15,0.00022102,2]
[312294962,1705758631751,-361.27,0.00019544,2]
[312294963,1705758631761,-370.48357515,0.00020997,2]
[312294964,1705758632039,-2577.80223778,0.00020997,2]
[312294965,1705758632050,-220.51136302,0.00020998,2]
[312294966,1705758632059,-226.11786442,0.00020998,2]
[312294967,1705758632069,-4638.11355098,0.00020999,2]
[312294968,1705758632078,-506.33180245,0.00021,2]
[312294969,1705758632091,-472.11,0.00021346,2]
[312294970,1705758632102,-250.0,0.00021534,2]
[312294971,1705758632115,-328.0,0.00021698,2]
[312294972,1705758632125,-176.15,0.00021749,2]
[312294973,1705758632135,-361.27,0.00021808,2]
[312294974,1705758632145,-35133.73908361,0.00021883,2]
[312294976,1705758632154,-199.05,0.00021886,2]
[312294978,1705758632163,-1231.71,0.00021899,2]
[312294980,1705758632172,-162.77,0.00021953,2]
[312294982,1705758632182,-158.2584342,0.00022002,2]
[312294984,1705758632192,-907.00406124,0.00022089,2]
[312294986,1705758632201,-547.1,0.00022089,2]
[312294988,1705758632211,-499.99,0.00022089,2]
[312294990,1705758632220,-3544.94,0.00022089,2]
[312294992,1705758632230,-167.7,0.00022091,2]
[312294994,1705758632239,-630.3066843,0.00022101,2]
[312294996,1705758632249,-610.1887134,0.00022102,2]
[312294998,1705758632258,-237.64151146,0.00022102,2]
[312295000,1705758632267,-3196.28243404,0.00022102,2]
[312295002,1705758632276,-158.25843416,0.00022152,2]
[312295004,1705758632286,-158.25843416,0.00022301,2]
[312295006,1705758632295,-1000.0,0.00022326,2]
[312295008,1705758632305,-1770.58,0.00022392,2]
[312295010,1705758632314,-158.25843416,0.00022451,2]
[312295012,1705758632324,-167.7,0.00022475,2]
[312295014,1705758632332,-150.99,0.00022475,2]
[312295016,1705758632342,-529.15035393,0.0002254,2]
[312295018,1705758632351,-1708.71966275,0.0002254,2]
[312295020,1705758632360,-155.0,0.0002254,2]
[312295022,1705758632369,-248.66279264,0.0002254,2]
[312295024,1705758632378,-413.23863288,0.0002254,2]
[312295026,1705758632387,-363.95030567,0.00022541,2]
[312295028,1705758632396,-169961.0,0.00022542,2]
[312295031,1705758632406,-158.25843416,0.00022601,2]
[312295033,1705758632415,-3170.51279029,0.00022601,2]
[312295035,1705758632425,-3170.51279029,0.00022701,2]
[312295037,1705758632434,-1231.71,0.00022709,2]
[312295039,1705758632442,-158.25843416,0.0002275,2]
[312295041,1705758632451,-419.03655905,0.00022768,2]
[312295043,1705758632460,-384.95254163,0.00022768,2]
[312295045,1705758632469,-758.33044579,0.00022768,2]
[312295047,1705758632478,-199.80077813,0.00022769,2]
[312295048,1705758632488,-3170.51279029,0.000228,2]
[312295051,1705758632497,-167.7,0.00022859,2]
[312295053,1705758632506,-1000.0,0.00022892,2]
[312295055,1705758632515,-226854.11411866,0.000229,2]
[312295057,1705758632528,-8321.99041137,0.000229,2]
[312295059,1705758632539,-151379.45442141,0.000229,2]
[312295061,1705758632552,-393.65462066,0.000229,2]
[312295062,1705758632564,-1408.29903671,0.000229,2]
[312295063,1705758632575,-1690.5686565,0.000229,2]
[312295064,1705758632587,-298.15429572,0.000229,2]
[312295065,1705758632598,-24832.7359403,0.000229,2]
[312295239,1705758641270,-1139.11643078,0.000229,2]
[312295241,1705758641283,-301.83235067,0.000229,2]
[312295244,1705758641294,-1890.3307152,0.000229,2]
[312295560,1705758645838,-1563.13368785,0.00022559,2]
[312295562,1705758645848,-891.91339473,0.0002256,2]
[312295564,1705758645860,-524.75407392,0.0002256,2]
[312295566,1705758645872,-15301.37253135,0.0002256,2]
[312295568,1705758645882,-2943.15170064,0.00022899,2]
[312295570,1705758645891,-125258.75924102,0.000229,2]
[312295571,1705758645900,-153.79206331,0.000229,2]
[312295572,1705758645909,-158.25843416,0.000229,2]
[312295573,1705758645918,-11480.38245622,0.000229,2]
[312295574,1705758645927,-3170.51279029,0.000229,2]
[312295575,1705758645937,-498.98578268,0.000229,2]
[312295576,1705758645946,-191.89854823,0.000229,4]
[312295577,1705758645955,-266.8641,0.000229,2]
[312295578,1705758645964,-38088.72782876,0.000229,2]
[312295579,1705758645973,-212.0,0.0002293,2]
[312295580,1705758645982,-800.0,0.00022959,2]
[312295581,1705758645991,-419.05406593,0.00022986,2]
[312295582,1705758646000,-800.0,0.00022986,2]
[312295583,1705758646009,-4260.70837315,0.00022997,2]
[312295584,1705758646019,-2619.24962995,0.00022998,2]
[312295585,1705758646028,-327.84761538,0.00022998,2]
[312295586,1705758646038,-182.22179849,0.00022998,2]
[312295587,1705758646048,-348.98382831,0.00022998,2]
[312295588,1705758646059,-155.6556456,0.00022998,2]
[312295589,1705758646068,-3022.43755205,0.00022998,2]
[312295590,1705758646077,-260.68258526,0.00022998,2]
[312295591,1705758646086,-207.57887739,0.00022998,2]
[312295592,1705758646096,-340.30700755,0.00022998,2]
[312295593,1705758646108,-767.5348565,0.00022998,2]
[312295594,1705758646117,-156.58316391,0.00022998,2]
[312295595,1705758646128,-344.58155285,0.00022998,2]
[312295596,1705758646137,-175.41364482,0.00022998,2]
[312295597,1705758646148,-279.24625351,0.00022998,2]
[312295598,1705758646158,-696.50758074,0.00022998,2]
[312295599,1705758646167,-467.67250831,0.00022998,2]
[312295600,1705758646175,-156.75326778,0.00022998,2]
[312295601,1705758646186,-1912.9258164,0.00022998,2]
[312295602,1705758646195,-156.95733506,0.00022998,2]
[312295603,1705758646205,-155.62784746,0.00022998,2]
[312295604,1705758646214,-155.65924392,0.00022998,2]
[312295605,1705758646223,-558.24691169,0.00022998,2]
[312295606,1705758646232,-10486.82282849,0.00022998,2]
[312295607,1705758646241,-204.3370281,0.00022998,2]
[312295608,1705758646250,-1209.9737523,0.00022998,2]
[312295609,1705758646260,-1581.2849475,0.00022999,2]
[312295610,1705758646269,-542.93511757,0.00022999,2]
[312295611,1705758646278,-500.0,0.00022999,2]
[312295612,1705758646287,-150.0,0.00022999,2]
[312295613,1705758646297,-150.0,0.00022999,2]
[312295614,1705758646306,-150.0,0.00022999,2]
[312295615,1705758646319,-150.0,0.00022999,2]
[312295616,1705758646328,-150.0,0.00022999,2]
[312295617,1705758646337,-150.0,0.00022999,2]
[312295618,1705758646346,-150.0,0.00022999,2]
[312295619,1705758646356,-150.0,0.00022999,2]
[312295620,1705758646365,-150.0,0.00022999,2]
[312295621,1705758646374,-150.0,0.00022999,2]
[312295622,1705758646384,-150.0,0.00022999,2]
[312295623,1705758646393,-150.0,0.00022999,2]
[312295624,1705758646402,-150.0,0.00022999,2]
[312295625,1705758646411,-150.0,0.00022999,2]
[312295626,1705758646421,-268.4779053,0.00022999,2]
[312295627,1705758646429,-150.0,0.00022999,2]
[312295628,1705758646439,-150.0,0.00022999,2]
[312295629,1705758646448,-150.0,0.00022999,2]
[312295630,1705758646457,-150.0,0.00022999,2]
[312295631,1705758646466,-150.0,0.00022999,2]
[312295632,1705758646475,-150.0,0.00022999,2]
[312295633,1705758646485,-150.0,0.00022999,2]
[312295634,1705758646494,-150.0,0.00022999,2]
[312295635,1705758646503,-150.0,0.00022999,2]
[312295636,1705758646513,-396.57528949,0.00023,2]
[312295637,1705758646522,-888193.64688205,0.00023,3]
[312295638,1705758646531,-499604.47134149,0.00023,2]
[312295639,1705758646545,-60975.32272036,0.00023,2]
[312295640,1705758646556,-1466.7544335,0.00023,2]
[312295641,1705758646569,-9875.4812982,0.00023,2]
[312295642,1705758646580,-17763.05520326,0.00023,2]
[312295643,1705758646602,-84877.44549966,0.00023,2]
[312295644,1705758646616,-2729.46933278,0.00023,2]
[312295645,1705758646630,-92670.15280512,0.00023,2]
[312295646,1705758646642,-357.48454765,0.00023,2]
[312295647,1705758646654,-1076.6485287,0.00023,2]
[312295648,1705758646665,-378.41523539,0.00023,2]
[312295649,1705758646677,-433.1540751,0.00023,2]
[312295658,1705759544970,333.52,0.00019169,2]
[312295685,1705759832227,-220.51136302,0.00019612,2]
[312295686,1705759832243,-108.13055933,0.00019613,2]
[312295687,1705759832260,-117.98730509,0.00019613,2]
[312295688,1705759832270,-155.0,0.00019614,2]
[312295689,1705759832281,-356.87269491,0.00019617,2]
[312295690,1705759832296,-2973.68230729,0.00019617,2]
[312295693,1705759832312,-3861.05352381,0.00019629,2]
[312295695,1705759832323,-2061.58406454,0.0001963,2]
[312295696,1705759832334,-157.75229804,0.00019635,2]
[312295697,1705759832345,-210.0,0.0001993,2]
[312295699,1705759832356,-205.0,0.0001993,2]
[312295701,1705759832367,-2000.0,0.00021044,2]
[312295704,1705759832378,-150.0,0.00021059,2]
[312295707,1705759832389,-150.0,0.00021059,2]
[312295710,1705759832400,-271.2,0.0002106,2]
[312295713,1705759832410,-3829.03,0.0002106,2]
[312295715,1705759832421,-499.99,0.0002106,2]
[312295718,1705759832433,-6496.62,0.0002106,2]
[312295720,1705759832444,-262.4,0.00021062,2]
[312295722,1705759832455,-250.0,0.00021133,2]
[312295724,1705759832466,-500.0,0.00021135,2]
[312295727,1705759832477,-639.94,0.00021187,2]
[312295729,1705759832488,-4800.24,0.00021187,2]
[312295731,1705759832499,-164.68,0.00021229,2]
[312295733,1705759832510,-58.12780632,0.00021298,2]
[312295736,1705759832524,-102.00219368,0.00021298,2]
[312295738,1705759832533,-333.52,0.00021433,2]
[312295740,1705759832546,-151.29,0.00021468,2]
[312295742,1705759832556,-155.0,0.0002149,2]
[312295744,1705759832566,-164.68,0.00021505,2]
[312295746,1705759832577,-1074.98,0.00021644,2]
[312295748,1705759832587,-737.6,0.00021733,2]
[312295749,1705759832597,-166.05,0.00021737,2]
[312295750,1705759832607,-164.68,0.00021782,2]
[312295751,1705759832619,-250.0,0.00021918,2]
[312295752,1705759832630,-1000.0,0.00021999,2]
[312295753,1705759832644,-258.33493005,0.00022,2]
[312295754,1705759832654,-150.0,0.00022,2]
[312295755,1705759832665,-150.0,0.00022,2]
[312295756,1705759832674,-150.0,0.00022,2]
[312295757,1705759832685,-176.36,0.00022,2]
[312295758,1705759832696,-500.0,0.00022,2]
[312295759,1705759832706,-271.65456604,0.00022,2]
[312295760,1705759832716,-164.68,0.00022058,2]
[312295761,1705759832726,-11171.10468059,0.00022092,2]
[312295762,1705759832736,-6441.03694263,0.00022097,2]
[312295763,1705759832746,-3334.0294644,0.00022102,2]
[312295764,1705759832756,-164.68,0.00022335,2]
[312295765,1705759832767,-1074.98,0.00022445,2]
[312295766,1705759832778,-176.36,0.00022548,2]
[312295767,1705759832793,-1092.92838286,0.00022601,3]
[312295768,1705759832805,-210.0,0.00022601,5]
[312295769,1705759832816,-30941.3072,0.00022668,2]
[312295770,1705759832826,-212.39777578,0.00022697,2]
[312295771,1705759832836,-191.59750761,0.00022697,2]
[312295772,1705759832847,-3170.51279033,0.00022697,2]
[312295773,1705759832857,-2314.4807,0.00022698,2]
[312295774,1705759832868,-164.2189,0.000227,2]
[312295775,1705759832878,-13680.0634,0.000227,2]
[312295776,1705759832888,-212.39777574,0.00022726,2]
[312295777,1705759832898,-212.39777574,0.00022755,2]
[312295778,1705759832909,-840.31688547,0.00022768,2]
[312295779,1705759832919,-212.39777574,0.00022784,2]
[312295780,1705759832930,-155.0,0.00022795,2]
[312295781,1705759832940,-160.1357463,0.00022795,2]
[312295782,1705759832951,-9002.253702,0.00022796,2]
[312295783,1705759832962,-25708.36918087,0.00022796,2]
[312295784,1705759832973,-1584.13512148,0.00022797,2]
[312295785,1705759832983,-403930.71539365,0.00022797,2]
[312295786,1705759832999,-518.80294479,0.00022797,2]
[312295787,1705759833012,-1453.23766428,0.00022797,2]
[312295788,1705759833024,-1374.0,0.00022797,2]
[312295789,1705759833037,-313.12930109,0.00022797,2]
[312295790,1705759833049,-705.09836731,0.00022797,2]
[312295791,1705759833062,-1042.36206145,0.00022797,2]
[312295792,1705759833075,-2904.44807585,0.00022797,2]
[312295793,1705759833087,-456.25811503,0.00022797,2]
[312295794,1705759833100,-422.48663601,0.00022797,2]
[312295795,1705759833113,-139893.78449725,0.00022797,2]
[312295796,1705759833125,-1419.47488724,0.00022797,2]
[312295797,1705759833144,-658.46,0.00022797,2]
[312295798,1705759833158,-624.13,0.00022797,2]
[312295799,1705759833179,-2544.41892805,0.00022797,2]
[312295800,1705759833191,-6238.08172646,0.00022797,2]
[312295811,1705759839499,-588.99961556,0.00022797,2]
[312295812,1705759839556,-492306.85177821,0.00022797,2]
[312295813,1705759839567,-308.22134209,0.00022797,10]
[312295814,1705759839579,-245000.0,0.00022798,2]
[312295815,1705759839589,-100000.0,0.000228,2]
[312295816,1705759839600,-18194.9167,0.000228,2]
[312295817,1705759839612,-500.0,0.000228,2]
[312295818,1705759839623,-1000.0,0.000228,2]
[312295819,1705759839633,-340.93548307,0.000228,2]
[312295820,1705759839644,-212.39777574,0.00022813,2]
[312295821,1705759839654,-200.0,0.00022815,2]
[312295822,1705759839665,-800.0,0.00022815,2]
[312295823,1705759839675,-800.0,0.00022816,2]
[312295824,1705759839686,-200.0,0.00022816,2]
[312295825,1705759839696,-800.0,0.00022816,2]
[312295826,1705759839707,-800.0,0.00022816,2]
[312295827,1705759839717,-800.0,0.00022816,2]
[312295828,1705759839727,-800.0,0.00022822,2]
[312295830,1705759839738,-639.94,0.0002283,2]
[312295833,1705759839748,-212.39777574,0.00022842,2]
[312295835,1705759839762,-340.93548306,0.0002285,2]
[312295836,1705759839773,-212.39777574,0.00022871,2]
[312295837,1705759839784,-218.31179648,0.00022897,2]
[312295838,1705759839794,-5000.0,0.00022898,2]
[312295839,1705759839806,-1000.0,0.00022898,2]
[312295840,1705759839816,-218.31179648,0.00022899,2]
[312295841,1705759839827,-191.5975076,0.00022899,2]
[312295842,1705759839839,-1114.22305188,0.000229,2]
[312295843,1705759839850,-250.0,0.000229,2]
[312295844,1705759839861,-33142.113904,0.000229,2]
[312295845,1705759839872,-46891.3986,0.000229,2]
[312295867,1705759840215,-212.39777574,0.000229,2]
[312295870,1705759840232,-151.0,0.000229,7]
[312295872,1705759840244,-154.36807109,0.000229,2]
[312295874,1705759840253,-340.93548306,0.000229,2]
[312295876,1705759840263,-218.31179648,0.000229,2]
[312295878,1705759840272,-153.17,0.00022958,2]
[312295880,1705759840280,-14795.0,0.00022986,2]
[312295882,1705759840289,-537.38418015,0.00022997,2]
[312295884,1705759840298,-239.38692458,0.00022997,2]
[312295886,1705759840307,-626.50019407,0.00022997,2]
[312295888,1705759840316,-4381.03266012,0.00022998,2]
[312295890,1705759840325,-242.32825192,0.00022998,2]
[312295892,1705759840334,-523.43271801,0.00022998,2]
[312295895,1705759840343,-311.59150887,0.00022998,2]
[312295897,1705759840352,-229.86869063,0.00022998,2]
[312295900,1705759840365,-196.91428267,0.00022998,2]
[312295902,1705759840374,-691.64691173,0.00022998,2]
[312295904,1705759840383,-155.20464114,0.00022998,2]
[312295906,1705759840392,-2894.68220287,0.00022998,2]
[312295908,1705759840401,-385.45093028,0.00022998,2]
[312295910,1705759840410,-672.82527924,0.00022998,2]
[312295912,1705759840420,-599.79806811,0.00022998,2]
[312295914,1705759840430,-178.74270135,0.00022998,2]
[312295916,1705759840439,-166.42517815,0.00022998,2]
[312295918,1705759840447,-156.81769853,0.00022998,2]
[312295920,1705759840456,-254.7545,0.00022998,2]
[312295922,1705759840465,-155.0,0.00022998,2]
[312295924,1705759840475,-157.38179978,0.00022998,2]
[312295926,1705759840483,-371.98608374,0.00022998,2]
[312295928,1705759840492,-1040.28791122,0.00022998,2]
[312295930,1705759840501,-528.57068135,0.00022998,2]
[312295931,1705759840511,-156.98063128,0.00022998,2]
[312295934,1705759840521,-269.72340834,0.00022998,2]
[312295935,1705759840531,-155.50823787,0.00022998,2]
[312295938,1705759840543,-386.26961565,0.00022998,2]